bitfinex-derivatives/quotes_SOLF0:USTF0_20250325
["timestamp","ask_amount","ask_price","bid_price","bid_amount"]
[1742912718591,28.02,146.74,146.58,28.02]
[1742912718786,6.817,146.68,146.61,6.8197]
[1742912718981,0.05202101,146.67,146.62,28.02]
[1742912719186,28.02,146.74,146.63,0.04682486]
[1742912719393,0.04544468,146.66,146.62,34.8392]
[1742912719687,28.02,146.74,146.67,0.05128735]
[1742912719886,0.04492985,146.65,146.62,34.8391]
[1742912720086,28.02,146.74,146.62,28.02]
[1742912720281,0.04560796,146.65,146.62,28.06331006]
[1742912720487,28.0,146.75,146.62,28.02]
[1742912720683,0.04899276,146.65,146.62,28.07136483]
[1742912720889,28.0,146.75,146.62,34.84]
[1742912721084,0.04713264,146.65,146.62,28.07207319]
[1742912721289,28.0,146.75,146.62,28.02]
[1742912721490,0.04687141,146.65,146.62,28.06987847]
[1742912721795,0.04870972,146.65,146.62,28.06659979]
[1742912722988,0.04870972,146.65,146.62,34.88659979]
[1742912723191,0.04870972,146.65,146.64,6.8186]
[1742912724190,0.04870972,146.65,146.62,28.06659979]
[1742912724793,0.04870972,146.65,146.64,6.8186]
[1742912725791,0.04870972,146.65,146.64,13.6386]
[1742912725992,0.04870972,146.65,146.64,6.8186]
[1742912726293,0.04870972,146.65,146.63,6.8189]
[1742912726489,0.04870972,146.65,146.62,28.06659979]
[1742912727190,0.04870972,146.65,146.62,0.04659979]
[1742912727392,0.04870972,146.65,146.63,27.98]
[1742912727992,0.04870972,146.65,146.64,6.8186]
[1742912729094,9.72e-06,146.65,146.64,13.6386]
[1742912729697,27.98,146.79,146.69,6.8159]
[1742912729896,27.98,146.79,146.7,27.98]
[1742912731000,0.05002686,146.76,146.73,0.0511675]
[1742912731201,6.8146,146.73,146.67,27.98]
[1742912731395,0.04925169,146.76,146.73,0.04896829]
[1742912731597,27.98,146.79,146.67,27.98]
[1742912731794,0.05066035,146.76,146.73,0.04804933]
[1742912732193,27.98,146.75,146.6,225.22]
[1742912732504,27.98,146.75,146.63,6.8187]
[1742912732798,6.8149,146.72,146.61,27.98]
[1742912733000,6.8149,146.72,146.65,6.8179]
[1742912733301,6.8155,146.71,146.65,27.98]
[1742912733493,0.05205499,146.7,146.67,0.04483382]
[1742912734991,0.00361499,146.7,146.67,6.86483382]
[1742912735198,0.00361499,146.7,146.69,6.8162]
[1742912735400,0.00361499,146.7,146.69,34.7962]
[1742912735595,0.00361499,146.7,146.69,41.6162]
[1742912735902,0.05676964,146.8,146.69,34.8]
[1742912736104,0.05676964,146.8,146.69,27.98]
[1742912736397,0.05676964,146.8,146.73,6.8143]
[1742912736597,0.05676964,146.8,146.74,27.98]
[1742912737005,0.04796743,146.78,146.76,0.04504341]
[1742912737198,6.8129,146.77,146.76,0.04504341]
[1742912737399,0.04796743,146.78,146.7,27.96]
[1742912737608,0.04796743,146.78,146.66,6.8174]
[1742912737609,6.8152,146.72,146.66,27.96]
[1742912737898,27.96,146.77,146.66,27.96]
[1742912738505,0.04734984,146.73,146.7,0.0498393]
[1742912738704,28.00734984,146.73,146.6,225.22]
[1742912738902,27.96,146.73,146.65,6.8179]
[1742912739304,32.16020852,146.8,146.58,13.6425]
[1742912739496,32.16020852,146.8,146.69,6.8162]
[1742912739704,27.96,146.79,146.67,27.96]
[1742912739906,0.04992039,146.76,146.73,0.04579298]
[1742912740100,27.96,146.79,146.7,34.7757]
[1742912740303,0.04898935,146.73,146.71,0.04404793]
[1742912740608,0.04441693,146.73,146.71,6.85924793]
[1742912741106,0.04441693,146.73,146.71,0.04404793]
[1742912743401,0.04441693,146.73,146.71,6.85894793]
[1742912743703,0.04441693,146.73,146.71,0.04404793]
[1742912746901,0.04441693,146.73,146.65,27.96]
[1742912747103,6.8159,146.7,146.65,27.96]
[1742912747304,27.96,146.74,146.65,27.96]
[1742912747507,19.67332483,146.79,146.65,27.96]
[1742912747711,27.96,146.78,146.66,6.8174]
[1742912748010,27.96,146.78,146.65,27.96]
[1742912748310,0.05171633,146.73,146.71,0.04908467]
[1742912748500,0.05676964,146.8,146.69,27.96]
[1742912748706,0.05676964,146.8,146.59,266.4263577]
[1742912748707,6.8152,146.72,146.71,0.04504904]
[1742912748904,27.96,146.75,146.65,27.96]
[1742912749106,0.04425205,146.73,146.7,0.04985507]
[1742912749409,6.8133,146.76,146.71,27.96]
[1742912749799,28.01676964,146.8,146.72,0.05130743]
[1742912749800,0.05183261,146.75,146.72,0.05130743]
[1742912750010,28.01676964,146.8,146.68,27.96]
[1742912750206,0.050343,146.75,146.72,0.04332565]
[1742912750408,28.010343,146.75,146.6,27.96]
[1742912750608,27.96,146.75,146.6,27.96]
[1742912750806,6.8171,146.68,146.61,6.8197]
[1742912751006,27.96,146.7,146.61,6.8197]
[1742912751408,6.8173,146.67,146.6,34.7802]
[1742912751609,0.04373448,146.67,146.64,0.05048743]
[1742912752006,0.04373448,146.67,146.65,27.96]
[1742912752807,0.04373448,146.67,146.64,0.05048743]
[1742912753208,0.04373448,146.67,146.59,27.8846577]
[1742912753809,6.8198,146.62,146.59,27.8846577]
[1742912754009,27.96,146.65,146.59,27.8846577]
[1742912754414,6.8203,146.61,146.59,27.8846577]
[1742912754813,6.8209,146.59,146.58,9.32809259]
[1742912755414,6.86840996,146.6,146.58,9.32809259]
[1742912755615,0.04780996,146.6,146.58,9.32809259]
[1742912756017,27.98,146.7,146.58,9.32809259]
[1742912756206,252.92,146.74,146.58,9.32809259]
[1742912756407,6.8165,146.69,146.61,6.8197]
[1742912756614,6.8165,146.69,146.62,27.98]
[1742912757112,6.8165,146.69,146.64,0.04433814]
[1742912757113,0.04613949,146.67,146.64,0.04433814]
[1742912757914,0.04613949,146.67,146.56,27.98]
[1742912758220,27.98,146.69,146.56,27.98]
[1742912758716,6.819,146.64,146.56,34.8022]
[1742912758920,27.98,146.69,146.56,34.8022]
[1742912759113,0.04949573,146.61,146.59,0.04913526]
[1742912759318,27.98,146.69,146.56,27.98]
[1742912759520,0.04546612,146.61,146.56,27.98]
[1742912759710,27.98,146.69,146.59,0.04908009]
[1742912759916,0.050037,146.6,146.56,34.8022]
[1742912760222,27.98,146.66,146.56,27.98]
[1742912760420,0.0452294,146.59,146.57,6.87345898]
[1742912760615,27.98,146.66,146.56,27.98]
[1742912760817,0.04737196,146.59,146.57,0.05182592]
[1742912761011,27.98,146.66,146.56,27.98]
[1742912761216,27.98,146.66,146.57,0.0450425]
[1742912761422,0.04780428,146.62,146.56,27.98]
[1742912761719,0.04780428,146.62,146.6,0.04942164]
[1742912761919,27.98,146.7,146.61,27.98]
[1742912762122,27.98,146.69,146.57,27.98]
[1742912762314,27.98,146.68,146.57,27.98]
[1742912762719,27.98,146.67,146.57,27.98]
[1742912763118,0.0504475,146.63,146.61,0.05117991]
[1742912764620,0.0504475,146.63,146.5,104.37869116]
[1742912764621,0.0504475,146.63,146.5,72.42878131]
[1742912764826,6.8207,146.6,146.54,6.8229]
[1742912765028,27.98,146.64,146.51,27.98]
[1742912765917,0.04602516,146.59,146.56,0.04786035]
[1742912766222,27.98,146.7,146.57,27.98]
[1742912766425,0.05094457,146.59,146.56,0.04991231]
[1742912766719,0.04506412,146.59,146.56,0.05049604]
[1742912768729,31.94990985,146.72,146.57,27.98]
[1742912768927,27.98,146.71,146.57,27.98]
[1742912769128,6.8178,146.66,146.6,6.8201]
[1742912769327,27.98,146.71,146.57,27.98]
[1742912769627,6.8176,146.67,146.61,6.8197]
[1742912769829,27.98,146.71,146.61,27.98]
[1742912770128,0.0492816,146.65,146.63,0.04553139]
[1742912770425,27.98,146.64,146.54,27.98]
[1742912770617,13.6326,146.69,146.49,224.9]
[1742912770618,27.98,146.63,146.49,224.9]
[1742912770817,6.8217,146.58,146.52,6.8237]
[1742912771024,27.98,146.61,146.51,27.98]
[1742912771427,6.8225,146.56,146.51,27.98]
[1742912771627,6.8225,146.56,146.55,0.05140772]
[1742912771823,28.02322847,146.57,146.47,9.32809259]
[1742912772021,6.8242,146.52,146.47,9.32809259]
[1742912772227,0.05011588,146.53,146.51,0.05105486]
[1742912772529,0.05011588,146.53,146.51,0.04729924]
[1742912775230,6.87381588,146.53,146.51,0.04729924]
[1742912775531,0.05011588,146.53,146.51,0.04729924]
[1742912776527,6.87391588,146.53,146.51,0.04729924]
[1742912776730,0.05011588,146.53,146.51,0.04729924]
[1742912777031,6.8241,146.52,146.51,0.04729924]
[1742912777437,0.05011588,146.53,146.51,0.04729924]
[1742912778231,6.8241,146.52,146.51,0.04729924]
[1742912778429,34.85011588,146.53,146.42,27.98]
[1742912778630,27.98,146.53,146.37,37.21275029]
[1742912778833,13.6485,146.52,146.37,37.21275029]
[1742912779132,27.98,146.53,146.37,37.21275029]
[1742912779333,45.59930985,146.51,146.37,65.21275029]
[1742912779521,0.0502359,146.46,146.37,37.21275029]
[1742912779721,6.8307,146.38,146.37,37.21275029]
[1742912779934,31.94990985,146.48,146.37,37.21275029]
[1742912779935,28.0,146.43,146.37,37.21275029]
[1742912780129,34.8286,146.43,146.37,37.21275029]
[1742912780322,28.0,146.45,146.37,37.21275029]
[1742912780728,0.04640345,146.42,146.4,0.04303997]
[1742912781831,6.8293,146.41,146.4,0.04303997]
[1742912782135,0.04640345,146.42,146.4,0.04303997]
[1742912783632,6.8293,146.41,146.34,6.8324]
[1742912784133,28.0,146.45,146.34,6.8324]
[1742912784530,28.0,146.45,146.35,6.832]
[1742912784732,6.87691175,146.41,146.39,0.04448705]
[1742912784936,28.04741175,146.41,146.39,0.04448705]
[1742912785137,28.04741175,146.41,146.31,28.0]
[1742912785438,28.0,146.41,146.29,28.0]
[1742912785839,28.0,146.41,146.28,28.0]
[1742912786041,6.8315,146.37,146.28,28.0]
[1742912786240,0.05195438,146.36,146.33,0.02836869]
[1742912788338,0.05195438,146.36,146.33,28.04836869]
[1742912788537,28.02,146.44,146.33,28.04836869]
[1742912788739,257.06990985,146.49,146.33,28.02]
[1742912788938,28.02,146.48,146.33,28.02]
[1742912789139,31.94990985,146.46,146.33,28.02]
[1742912789338,31.94990985,146.46,146.31,6.8339]
[1742912789538,31.94990985,146.46,146.3,28.02]
[1742912789737,6.8307,146.38,146.37,0.04566232]
[1742912789944,28.02,146.39,146.3,28.02]
[1742912790141,28.06726748,146.39,146.36,0.04984876]
[1742912790332,34.8505,146.39,146.34,6.8323]
[1742912790537,0.04335715,146.39,146.36,0.0452231]
[1742912790840,0.04335715,146.39,146.37,6.8309]
[1742912791041,0.04335715,146.39,146.36,0.0452231]
[1742912792640,6.8311,146.37,146.36,0.0452231]
[1742912793035,0.04335715,146.39,146.27,0.06735049]
[1742912793349,6.8341,146.31,146.27,0.06735049]
[1742912793734,6.8338,146.32,146.27,0.06735049]
[1742912793938,28.02,146.34,146.27,6.90315049]
[1742912794144,0.04653252,146.31,146.28,0.03509997]
[1742912795044,6.88073252,146.31,146.28,0.03509997]
[1742912795243,0.04653252,146.31,146.28,0.03509997]
[1742912796444,6.8346,146.3,146.28,0.03509997]
[1742912796642,0.04653252,146.31,146.28,0.03509997]
[1742912797151,6.8347,146.3,146.28,0.03509997]
[1742912797648,6.8349,146.29,146.28,0.03509997]
[1742912798240,6.88063252,146.31,146.28,0.03509997]
[1742912798446,0.04653252,146.31,146.28,0.03509997]
[1742912798650,6.8347,146.3,146.28,0.03509997]
[1742912798843,0.04653252,146.31,146.28,0.03509997]
[1742912800144,6.8349,146.29,146.28,0.03509997]
[1742912801748,28.02,146.29,146.21,28.02]
[1742912802049,19.77021658,146.43,146.21,28.02]
[1742912802249,253.4,146.4,146.22,225.44]
[1742912802449,253.4,146.4,146.23,13.675]
[1742912802843,0.050027,146.33,146.22,225.44]
[1742912803048,253.4,146.4,146.22,225.44]
[1742912803248,0.04754875,146.29,146.22,225.44]
[1742912803449,28.04,146.36,146.22,225.44]
[1742912803653,0.04896049,146.27,146.22,225.44]
[1742912803848,28.04,146.36,146.27,6.8355]
[1742912804046,28.04,146.36,146.26,28.04]
[1742912804247,0.05177198,146.33,146.26,28.04]
[1742912806057,0.05177198,146.33,146.29,6.8347]
[1742912806249,0.05177198,146.33,146.26,28.04]
[1742912807646,0.05177198,146.33,146.31,6.8337]
[1742912808051,0.05177198,146.33,146.26,28.04]
[1742912808247,0.05177198,146.33,146.32,6.8335]
[1742912808448,0.05177198,146.33,146.22,225.44]
[1742912808449,0.05177198,146.33,146.3,28.04]
[1742912808648,28.04,146.37,146.28,28.04]
[1742912808857,6.8335,146.32,146.25,28.04]
[1742912809050,28.04,146.33,146.25,28.04]
[1742912809250,8.466e-05,146.3,146.25,28.04]
[1742912809451,34.8708,146.38,146.25,28.04]
[1742912809854,28.04,146.38,146.25,28.04]
[1742912810455,0.04999469,146.33,146.3,0.0437]
[1742912810953,0.04999469,146.33,146.3,6.878]
[1742912811159,0.04999469,146.33,146.3,28.0837]
[1742912812059,0.04999469,146.33,146.3,34.9177]
[1742912812860,0.04999469,146.33,146.3,28.0837]
[1742912813057,225.5,146.41,146.3,28.0837]
[1742912813257,28.04,146.45,146.3,28.04]
[1742912813453,225.5,146.47,146.3,28.04]
[1742912813655,225.5,146.47,146.31,225.5]
[1742912813856,253.54,146.47,146.34,6.8325]
[1742912814159,253.54,146.47,146.35,28.04]
[1742912814361,0.04298933,146.42,146.39,0.04759118]
[1742912814866,6.8316,146.36,146.32,28.04]
[1742912815160,28.04,146.43,146.32,28.04]
[1742912815560,28.04,146.43,146.29,28.02]
[1742912815759,0.04795445,146.39,146.36,0.04610351]
[1742912815949,28.02,146.38,146.29,28.02]
[1742912816155,28.02,146.38,146.31,6.8335]
[1742912816350,6.8313,146.37,146.29,28.02]
[1742912816562,28.02,146.38,146.29,28.02]
[1742912816763,28.02,146.38,146.29,65.23275029]
[1742912816957,6.8319,146.36,146.29,65.23275029]
[1742912817262,0.04439696,146.35,146.29,65.23275029]
[1742912818459,6.8326,146.34,146.29,72.06735029]
[1742912819264,6.8326,146.34,146.3,6.8342]
[1742912819461,6.8334,146.33,146.29,65.23275029]
[1742912819665,0.04439696,146.35,146.28,6.8349]
[1742912819963,28.02,146.38,146.27,28.02]
[1742912820160,6.8336,146.32,146.27,28.02]
[1742912820357,6.8336,146.32,146.25,262.67275029]
[1742912820358,0.04472549,146.33,146.25,65.23275029]
[1742912820561,6.8347,146.3,146.25,65.23275029]
[1742912820762,28.02,146.34,146.25,65.23275029]
[1742912820963,0.04577934,146.29,146.25,65.23275029]
[1742912821359,0.04577934,146.29,146.28,6.8353]
[1742912822664,0.04577934,146.29,146.27,6.8356]
[1742912822861,0.04577934,146.29,146.25,28.02]
[1742912822862,6.88087934,146.29,146.25,28.02]
[1742912823659,0.04577934,146.29,146.23,28.02]
[1742912823866,0.04577934,146.29,146.25,6.8365]
[1742912824162,6.88087934,146.29,146.25,6.8365]
[1742912824565,6.8354,146.28,146.24,6.837]
[1742912824861,0.04577934,146.29,146.24,6.837]
[1742912825062,0.04577934,146.29,146.25,6.8365]
[1742912825261,0.04577934,146.29,146.23,28.02]
[1742912825660,0.04577934,146.29,146.26,6.836]
[1742912826164,0.04577934,146.29,146.27,6.8357]
[1742912826965,0.04577934,146.29,146.23,28.02]
[1742912827359,6.88097934,146.29,146.26,6.8362]
[1742912827561,6.88097934,146.29,146.23,28.02]
[1742912827759,0.04577934,146.29,146.23,28.02]
[1742912827960,6.88087934,146.29,146.23,28.02]
[1742912828156,0.04577934,146.29,146.21,1.36789549]
[1742912828362,0.04577934,146.29,146.2,28.02]
[1742912828659,28.02,146.3,146.22,6.8381]
[1742912828860,0.04915116,146.26,146.2,28.02]
[1742912829161,5.116e-05,146.26,146.25,6.8367]
[1742912829365,5.116e-05,146.26,146.25,34.8567]
[1742912830263,5.116e-05,146.26,146.25,34.8767]
[1742912830457,5.116e-05,146.26,146.24,0.0491]
[1742912831765,6.83655116,146.26,146.24,0.0491]
[1742912831965,5.116e-05,146.26,146.24,0.0491]
[1742912832363,6.8367,146.25,146.24,0.0491]
[1742912832569,5.116e-05,146.26,146.2,44.05155029]
[1742912832757,5.116e-05,146.26,146.2,37.21275029]
[1742912832962,6.838,146.23,146.2,37.21275029]
[1742912833567,0.05220573,146.23,146.2,37.21275029]
[1742912834567,6.8382,146.22,146.2,37.21275029]
[1742912834762,0.05220573,146.23,146.2,37.21275029]
[1742912835168,6.8384,146.22,146.2,37.21275029]
[1742912835371,0.05220573,146.23,146.2,37.21275029]
[1742912835868,0.05220573,146.23,146.2,44.05145029]
[1742912836074,0.05220573,146.23,146.2,16.16679259]
[1742912836267,0.05220573,146.23,146.16,0.12361395]
[1742912836468,0.05220573,146.23,146.18,6.8397]
[1742912836766,0.05220573,146.23,146.16,0.12361395]
[1742912836972,0.05220573,146.23,146.19,28.04]
[1742912837374,0.05220573,146.23,146.22,6.8381]
[1742912837562,0.05220573,146.23,146.19,28.04]
[1742912838566,0.05220573,146.23,146.21,6.8383]
[1742912838964,0.05220573,146.23,146.2,6.8388]
[1742912839169,0.05220573,146.23,146.19,28.04]
[1742912839570,0.05220573,146.23,146.2,6.8387]
[1742912839768,0.05220573,146.23,146.19,28.04]
[1742912840176,0.05220573,146.23,146.21,6.8385]
[1742912840472,0.05220573,146.23,146.19,28.04]
[1742912840972,225.58,146.35,146.19,28.04]
[1742912841277,6.8337,146.32,146.19,28.04]
[1742912841472,28.04,146.34,146.19,28.04]
[1742912841976,6.8337,146.32,146.26,6.8359]
[1742912842167,0.04665815,146.28,146.25,0.05211819]
[1742912842372,28.04,146.27,146.16,6.96441395]
[1742912842573,28.04,146.26,146.16,6.96441395]
[1742912842876,19.77021658,146.33,146.19,6.8393]
[1742912843071,19.77021658,146.3,146.16,0.12361395]
[1742912843273,33.43971658,146.3,146.16,0.12361395]
[1742912843468,0.04894376,146.24,146.16,0.12361395]
[1742912843677,28.04,146.23,146.16,0.12361395]
[1742912844069,0.05220733,146.21,146.16,0.12361395]
[1742912844470,6.8405,146.17,146.16,0.12361395]
[1742912844670,34.8805,146.17,146.16,0.12361395]
[1742912845468,28.04,146.17,146.07,65.25275029]
[1742912845768,28.04,146.17,146.1,6.8435]
[1742912845967,0.04507586,146.13,146.1,6.8435]
[1742912846176,0.04507586,146.13,146.07,65.25275029]
[1742912846574,6.88777586,146.13,146.07,37.21275029]
[1742912847068,6.88777586,146.13,146.07,44.05755029]
[1742912847273,6.8447,146.08,146.07,37.21275029]
[1742912847480,28.04,146.08,146.04,158.39338796]
[1742912847677,6.8461,146.05,146.04,158.39338796]
[1742912848375,6.88990144,146.06,146.04,158.39338796]
[1742912848576,0.04430144,146.06,146.04,158.39338796]
[1742912850080,0.04430144,146.06,146.01,7.07453605]
[1742912850283,28.04,146.28,146.02,19.77021658]
[1742912850478,28.04,146.28,146.05,19.77021658]
[1742912850679,6.8392,146.2,146.06,28.04]
[1742912850878,28.04,146.23,146.06,28.04]
[1742912851482,0.04910298,146.16,146.13,6.88757793]
[1742912851676,0.04910298,146.16,146.14,28.04]
[1742912851874,28.04,146.23,146.14,28.04]
[1742912852279,0.05070177,146.2,146.17,0.04417518]
[1742912854085,0.05070177,146.2,146.18,28.04]
[1742912854384,0.05070177,146.2,146.19,6.8395]
[1742912855479,0.05070177,146.2,146.17,0.04417518]
[1742912857490,0.05070177,146.2,146.17,28.08417518]
[1742912857784,0.05070177,146.2,146.19,6.8395]
[1742912859980,0.05070177,146.2,146.17,0.04417518]
[1742912861183,0.05070177,146.2,146.18,6.8396]
[1742912861381,0.05070177,146.2,146.17,0.04417518]
[1742912861686,0.05070177,146.2,146.17,6.88427518]
[1742912861985,0.05070177,146.2,146.17,0.04417518]
[1742912862286,0.05070177,146.2,146.19,6.8395]
[1742912862886,0.05070177,146.2,146.18,6.8399]
[1742912863081,0.05070177,146.2,146.17,0.04417518]
[1742912863688,0.05070177,146.2,146.19,6.8395]
[1742912864889,0.05070177,146.2,146.17,0.04417518]
[1742912865384,28.04,146.19,146.17,0.04417518]
[1742912865787,34.88,146.19,146.07,28.04]
[1742912865982,28.04,146.19,146.03,1.36958159]
[1742912866190,28.04,146.19,146.06,28.04]
[1742912866488,6.8422,146.14,146.09,6.8441]
[1742912866685,28.04,146.14,146.03,1.36958159]
[1742912866887,0.04981714,146.13,146.05,6.8458]
[1742912867188,28.04,146.14,146.01,28.26693605]
[1742912867391,0.05239838,146.1,146.01,28.26693605]
[1742912867584,28.09239838,146.1,146.01,28.26693605]
[1742912867882,0.04916074,146.07,146.01,28.26693605]
[1742912868287,0.04916074,146.07,146.06,6.8456]
[1742912869977,0.04916074,146.07,146.05,6.8457]
[1742912870184,0.04916074,146.07,146.01,0.22693605]
[1742912870382,0.04916074,146.07,146.01,28.26693605]
[1742912870583,0.04916074,146.07,146.01,0.22693605]
[1742912870983,6.8464,146.05,146.01,7.07453605]
[1742912871183,0.04916074,146.07,146.01,0.22693605]
[1742912872189,0.04916074,146.07,146.06,6.8456]
[1742912872384,28.06,146.16,146.05,28.06]
[1742912873293,28.06,146.16,146.09,6.8439]
[1742912873489,0.05166241,146.12,146.09,6.89446349]
[1742912873687,0.05166241,146.12,146.09,0.05056349]
[1742912873892,15.99535505,146.17,146.11,19.77021658]
[1742912874088,143.65716378,146.2,146.14,19.77021658]
[1742912874290,233.41153408,146.21,146.2,6.8391]
[1742912874590,41.66436078,146.21,146.2,28.06]
[1742912874891,6.078e-05,146.21,146.2,41.7391]
[1742912875287,0.04913662,146.22,146.2,34.9]
[1742912875483,3.662e-05,146.22,146.21,6.8386]
[1742912875687,145.65238857,146.23,146.2,34.9]
[1742912875885,113.51708857,146.23,146.2,34.9]
[1742912876085,113.51708857,146.23,146.22,6.8381]
[1742912876285,113.51708857,146.23,146.22,13.6781]
[1742912876492,6.8327,146.34,146.27,6.8358]
[1742912876994,225.78,146.38,146.27,6.8358]
[1742912876995,0.05040086,146.29,146.27,6.8358]
[1742912877195,0.05040086,146.29,146.26,28.1102767]
[1742912877396,0.05040086,146.29,146.26,0.0502767]
[1742912878596,6.8358,146.27,146.26,27.94084902]
[1742912878791,34.8758,146.27,146.26,27.94084902]
[1742912878987,34.88,146.27,146.22,111.47781817]
[1742912879193,28.04,146.27,146.22,111.47781817]
[1742912879891,6.837,146.25,146.22,111.47781817]
[1742912880092,6.837,146.25,146.22,111.52276262]
[1742912880298,0.05036275,146.25,146.22,111.52276262]
[1742912881000,0.05036275,146.25,146.22,0.04494445]
[1742912881391,6.8389,146.21,146.15,34.8811]
[1742912881594,6.8389,146.21,146.14,28.04]
[1742912881795,28.04,146.23,146.09,111.47781817]
[1742912881990,28.04,146.23,146.12,28.04]
[1742912882507,28.04,146.23,146.16,0.04744793]
[1742912882508,0.04465692,146.19,146.16,0.04744793]
[1742912882907,0.04465692,146.19,146.16,28.08744793]
[1742912883404,0.04465692,146.19,146.16,0.04744793]
[1742912883996,0.04465692,146.19,146.17,28.04]
[1742912884198,28.04,146.26,146.17,28.04]
[1742912884410,28.04,146.27,146.17,28.04]
[1742912884607,6.8378,146.23,146.17,28.04]
[1742912885107,28.04,146.27,146.17,28.04]
[1742912885303,0.04790409,146.21,146.19,0.05008188]
[1742912885504,28.04,146.27,146.19,0.05008188]
[1742912885699,6.8391,146.2,146.19,0.05008188]
[1742912886198,0.04585294,146.21,146.19,0.05008188]
[1742912887104,0.04585294,146.21,146.12,139.51781817]
[1742912887301,28.04,146.22,146.12,139.51781817]
[1742912887302,28.04,146.22,146.12,111.47781817]
[1742912888309,0.05001897,146.18,146.16,0.05071641]
[1742912888501,28.04,146.23,146.14,6.8417]
[1742912888706,0.05087399,146.18,146.16,0.05071641]
[1742912888902,28.04,146.23,146.16,0.05071641]
[1742912889105,0.04858352,146.18,146.16,0.05071641]
[1742912889299,28.04,146.23,146.16,0.05071641]
[1742912889705,6.8399,146.19,146.16,0.05071641]
[1742912889907,0.05171874,146.21,146.16,0.05071641]
[1742912890310,0.05171874,146.21,146.17,6.8404]
[1742912890608,0.05171874,146.21,146.16,0.05071641]
[1742912891208,0.05171874,146.21,146.17,6.8403]
[1742912892306,6.89041874,146.21,146.16,7.16244525]
[1742912892502,0.05171874,146.21,146.18,7.11172884]
[1742912893108,17.59649271,146.23,146.18,7.11172884]
[1742912893310,28.04,146.23,146.18,7.11172884]
[1742912893510,6.8395,146.19,146.18,7.11172884]
[1742912894010,28.04,146.23,146.15,118.58954701]
[1742912894209,32.13973443,146.27,146.16,0.05039364]
[1742912894210,0.04883714,146.19,146.16,0.05039364]
[1742912894408,8.53733,146.28,146.15,118.58954701]
[1742912894610,0.04311409,146.19,146.16,6.8865933]
[1742912894801,6.8384,146.22,146.16,6.8865933]
[1742912894802,6.8384,146.22,146.16,6.8408]
[1742912895004,0.04545717,146.19,146.16,6.88612119]
[1742912895209,0.04545717,146.19,146.16,0.04532119]
[1742912895717,0.04545717,146.19,146.17,6.8402]
[1742912895913,0.04545717,146.19,146.18,28.04]
[1742912897515,8.53733,146.28,146.18,35.15172884]
[1742912898010,6.838,146.23,146.18,41.99142884]
[1742912898215,8.53733,146.28,146.18,41.99142884]
[1742912898420,8.53733,146.28,146.18,35.15172884]
[1742912898720,0.04512092,146.24,146.22,0.04574745]
[1742912899208,6.88262092,146.24,146.22,0.04574745]
[1742912899812,8.53733,146.28,146.23,28.04]
[1742912900816,8.53733,146.28,146.24,6.92616665]
[1742912901017,0.04402258,146.27,146.24,6.92616665]
[1742912901212,0.04402258,146.27,146.25,6.8364]
[1742912901716,0.04402258,146.27,146.24,13.76316665]
[1742912901915,0.04402258,146.27,146.24,6.92616665]
[1742912902116,225.66,146.39,146.24,6.84]
[1742912902313,225.66,146.39,146.23,102.35763591]
[1742912902613,253.68,146.39,146.23,102.35763591]
[1742912903216,0.04740537,146.32,146.3,0.04628449]
[1742912903517,253.68,146.39,146.29,28.02]
[1742912903719,0.05112381,146.32,146.3,0.04903195]
[1742912903913,225.66,146.39,146.3,0.04903195]
[1742912904120,0.04405077,146.32,146.29,28.02]
[1742912904323,6.8333,146.33,146.29,28.02]
[1742912904620,6.88329599,146.32,146.29,28.06801453]
[1742912904816,253.68,146.39,146.29,28.02]
[1742912905014,0.04872793,146.32,146.29,28.06821811]
[1742912905216,6.8332,146.33,146.29,28.02]
[1742912905515,0.04507929,146.32,146.3,6.92088636]
[1742912907215,6.8339,146.31,146.3,6.92088636]
[1742912907417,6.76667754,146.31,146.3,27.75256009]
[1742912907821,6.87867929,146.32,146.3,27.75256009]